bitfinex/quotes_BTCUSD_20241101
["timestamp","ask_amount","ask_price","bid_price","bid_amount"]
[1730464581965,0.1,70175.0,70172.0,0.142506]
[1730464582941,0.102,70175.0,70172.0,0.142506]
[1730464583393,0.002,70175.0,70171.0,0.285017]
[1730464583841,0.002,70175.0,70172.0,0.142506]
[1730464584047,0.242499,70176.0,70172.0,0.142506]
[1730464584268,0.242499,70176.0,70165.0,0.3793324]
[1730464584269,0.001,70175.0,70165.0,0.3793324]
[1730464584471,0.28501,70173.0,70159.0,0.3793324]
[1730464584674,0.142511,70170.0,70166.0,0.142518]
[1730464585137,0.13845525,70175.0,70159.0,0.3793324]
[1730464585388,0.1,70176.0,70172.0,0.285013]
[1730464585389,0.001,70176.0,70172.0,0.285013]
[1730464585651,0.001,70176.0,70175.0,0.224]
[1730464585853,0.21593124,70189.0,70176.0,0.142498]
[1730464587952,0.21593124,70189.0,70176.0,0.145498]
[1730464588872,0.21593124,70189.0,70176.0,0.147498]
[1730464589344,0.21593124,70189.0,70176.0,0.15034739]
[1730464589600,0.21593124,70189.0,70176.0,0.28595325]
[1730464590929,0.21593124,70189.0,70176.0,0.28095325]
[1730464591156,0.21593124,70189.0,70176.0,0.28395325]
[1730464591367,0.04359307,70187.0,70176.0,0.144498]
[1730464591597,0.50087724,70189.0,70176.0,0.144498]
[1730464591827,0.14248,70186.0,70176.0,0.145498]
[1730464592063,0.14248,70185.0,70176.0,0.142498]
[1730464592282,0.50087724,70189.0,70176.0,0.147498]
[1730464592689,0.142477,70187.0,70176.0,0.142498]
[1730464592893,0.142478,70186.0,70176.0,0.142498]
[1730464593742,0.284959,70186.0,70176.0,0.142498]
[1730464593945,0.284969,70184.0,70176.0,0.144498]
[1730464594152,0.142493,70179.0,70176.0,0.005]
[1730464594366,0.142489,70181.0,70176.0,0.147498]
[1730464594578,0.142482,70185.0,70176.0,0.145498]
[1730464594848,0.284958,70186.0,70176.0,0.147498]
[1730464595059,0.284958,70186.0,70176.0,0.144498]
[1730464595481,0.21593124,70189.0,70176.0,0.144498]
[1730464595706,0.21593124,70189.0,70176.0,0.14734777]
[1730464595937,0.21593124,70189.0,70176.0,0.144498]
[1730464596152,0.284953,70187.0,70176.0,0.144498]
[1730464596370,0.142477,70187.0,70176.0,0.144498]
[1730464596574,0.21593124,70189.0,70176.0,0.147498]
[1730464596777,0.21593124,70189.0,70176.0,0.15034769]
[1730464596988,0.21593124,70189.0,70176.0,0.28680294]
[1730464597140,0.21593124,70189.0,70176.0,0.28395325]
[1730464597352,0.21593124,70189.0,70176.0,0.28595325]
[1730464597565,0.21593124,70189.0,70176.0,0.147498]
[1730464597776,0.21593124,70189.0,70176.0,0.142498]
[1730464597960,0.21593124,70189.0,70176.0,0.28395325]
[1730464598157,0.21593124,70189.0,70176.0,0.28595325]
[1730464598360,0.21593124,70189.0,70176.0,0.28295325]
[1730464598566,0.21593124,70189.0,70176.0,0.52975555]
[1730464598789,0.21593124,70189.0,70176.0,0.52675555]
[1730464599004,0.21593124,70189.0,70176.0,0.52875555]
[1730464599208,0.21593124,70189.0,70176.0,0.53175555]
[1730464599662,0.21593124,70189.0,70176.0,0.52875555]
[1730464600263,0.21593124,70189.0,70176.0,0.3903003]
[1730464600846,0.21593124,70189.0,70176.0,0.3883003]
[1730464601209,0.21593124,70189.0,70176.0,0.3933003]
[1730464601412,0.21593124,70189.0,70176.0,0.3903003]
[1730464601814,0.21593124,70189.0,70176.0,0.3913003]
[1730464602033,0.21593124,70189.0,70176.0,0.3883003]
[1730464602396,0.21593124,70189.0,70176.0,0.52975555]
[1730464602397,0.001644,70189.0,70176.0,0.52975555]
[1730464602614,0.001644,70189.0,70188.0,0.316274]
[1730464602834,0.001644,70189.0,70188.0,0.45472925]
[1730464603052,0.001644,70189.0,70188.0,0.70053155]
[1730464603887,0.001644,70189.0,70188.0,0.5620763]
[1730464604907,0.001644,70189.0,70188.0,0.5650763]
[1730464605343,0.001644,70189.0,70188.0,0.5640763]
[1730464605542,0.001644,70189.0,70188.0,0.95133385]
[1730464605741,0.002644,70189.0,70188.0,0.95133385]
[1730464606193,0.002644,70189.0,70188.0,0.70553155]
[1730464606373,0.002644,70189.0,70188.0,0.70253155]
[1730464606767,0.002644,70189.0,70188.0,0.70553155]
[1730464607669,0.002644,70189.0,70188.0,0.70353155]
[1730464607874,0.003644,70189.0,70188.0,0.70553155]
[1730464608093,0.003644,70189.0,70188.0,0.70253155]
[1730464608513,0.003644,70189.0,70188.0,0.70353155]
[1730464608725,0.003644,70189.0,70188.0,0.70253155]
[1730464609170,0.003644,70189.0,70188.0,0.70553155]
[1730464609387,0.21428724,70199.0,70198.0,0.3882563]
[1730464610031,0.21428724,70199.0,70198.0,0.2458023]
[1730464610258,0.21428724,70207.0,70198.0,0.1458023]
[1730464610259,0.284878,70206.0,70198.0,0.1458023]
[1730464610479,0.023,70214.0,70205.0,0.2458023]
[1730464610696,0.08543838,70248.0,70196.0,0.2458023]
[1730464610697,0.284767,70233.0,70216.0,0.142417]
[1730464610953,0.142378,70236.0,70228.0,0.2458023]
[1730464611195,0.284756,70236.0,70228.0,0.2458023]
[1730464611428,0.142387,70231.0,70222.0,0.1458023]
[1730464611670,0.142392,70229.0,70222.0,0.1458023]
[1730464611900,0.142384,70233.0,70223.0,0.142402]
[1730464612156,0.1,70233.0,70226.0,0.142396]
[1730464612383,0.1,70233.0,70222.0,0.1458023]
[1730464612384,0.1,70233.0,70223.0,0.142403]
[1730464612596,0.1,70233.0,70224.0,0.284802]
[1730464612846,0.1,70232.0,70223.0,0.284806]
[1730464613072,0.1,70232.0,70224.0,0.284799]
[1730464613321,0.1,70232.0,70228.0,0.142391]
[1730464613531,0.1,70232.0,70227.0,0.142394]
[1730464613978,0.1,70232.0,70224.0,0.284802]
[1730464614227,0.1,70232.0,70228.0,0.142392]
[1730464614454,0.001807,70230.0,70227.0,0.142394]
[1730464614899,0.001807,70230.0,70227.0,0.28479]
[1730464615362,0.001807,70230.0,70228.0,0.145392]
[1730464615814,0.001807,70230.0,70229.0,0.00445503]
[1730464616508,0.4899983,70230.0,70229.0,0.00445503]
[1730464616744,0.68924803,70230.0,70229.0,0.00445503]
[1730464616984,0.142393,70228.0,70227.0,0.002]
[1730464617216,0.3476093,70230.0,70227.0,0.00645515]
[1730464617433,0.3476093,70230.0,70222.0,0.142405]
[1730464617434,0.142393,70228.0,70222.0,0.142405]
[1730464617678,0.142393,70228.0,70223.0,0.00445527]
[1730464617894,0.142393,70228.0,70222.0,0.142405]
[1730464617895,0.142393,70228.0,70224.0,0.00445527]
[1730464618114,0.142393,70228.0,70225.0,0.00445527]
[1730464618333,0.142393,70228.0,70216.0,0.284831]
[1730464618334,0.49907624,70228.0,70219.0,0.142411]
[1730464618549,0.2458023,70225.0,70220.0,0.00445563]
[1730464618771,0.142405,70222.0,70221.0,0.00445563]
[1730464619417,0.2458023,70225.0,70196.0,0.28694739]
[1730464619418,0.2458023,70225.0,70211.0,0.142427]
[1730464619637,0.142417,70217.0,70212.0,0.00445598]
[1730464619873,0.2458023,70220.0,70214.0,0.21428724]
[1730464620108,0.21428724,70222.0,70215.0,0.00445598]
[1730464620308,0.13845525,70221.0,70216.0,0.00445598]
[1730464620532,0.14241,70220.0,70217.0,0.00445598]
[1730464620766,0.13845525,70221.0,70214.0,0.284839]
[1730464620971,0.14241,70220.0,70218.0,0.00445581]
[1730464621198,0.14241,70220.0,70219.0,0.00445581]
[1730464621646,0.024,70225.0,70219.0,0.00445581]
[1730464621872,0.024,70225.0,70220.0,0.00445581]
[1730464621873,0.001,70225.0,70220.0,0.00445581]
[1730464622097,0.21528724,70225.0,70222.0,0.142404]
[1730464622314,0.1434,70225.0,70220.0,0.142408]
[1730464622551,0.1434,70225.0,70221.0,0.00445556]
[1730464622773,0.1434,70225.0,70222.0,0.00445556]
[1730464622994,0.1434,70225.0,70220.0,0.142408]
[1730464623216,0.142402,70224.0,70221.0,0.00445555]
[1730464623423,0.142402,70224.0,70221.0,0.01082278]
[1730464623424,0.142405,70222.0,70221.0,0.01082278]
[1730464623666,0.142405,70222.0,70221.0,0.00445561]
[1730464623893,0.42326025,70224.0,70215.0,0.00712898]
[1730464624141,0.13845525,70224.0,70221.0,0.00636428]
[1730464624415,0.13845525,70224.0,70222.0,0.142405]
[1730464624614,0.001,70225.0,70224.0,0.142401]
[1730464624835,0.001,70225.0,70224.0,0.24655647]
[1730464625068,0.001,70225.0,70224.0,0.33774446]
[1730464625838,0.000807,70239.0,70229.0,0.0797]
[1730464626058,0.000807,70239.0,70228.0,0.1]
[1730464626059,0.21428724,70241.0,70240.0,0.416869]
[1730464626294,0.21428724,70249.0,70243.0,0.242362]
[1730464626540,0.000807,70260.0,70247.0,0.1]
[1730464626789,0.000807,70260.0,70246.0,0.459213]
[1730464626790,0.000807,70260.0,70252.0,0.1]
[1730464627044,0.000807,70260.0,70249.0,0.284697]
[1730464627045,0.21509424,70260.0,70259.0,0.6666323]
[1730464627289,0.000807,70260.0,70259.0,0.4366702]
[1730464627504,0.000807,70260.0,70259.0,0.82251342]
[1730464627979,0.000807,70260.0,70259.0,0.82453664]
[1730464628193,0.000807,70269.0,70268.0,0.142312]
[1730464628465,0.000807,70269.0,70268.0,0.47255061]
[1730464628910,0.000807,70269.0,70268.0,0.47834635]
[1730464629391,0.000807,70269.0,70268.0,0.48134635]
[1730464629637,0.21428724,70284.0,70283.0,0.142281]
[1730464629860,0.21428724,70284.0,70283.0,0.14673647]
[1730464630078,0.000807,70291.0,70284.0,0.142279]
[1730464630301,0.000807,70291.0,70284.0,0.3764795]
[1730464630529,0.000807,70291.0,70284.0,0.45868549]
[1730464630773,0.000807,70291.0,70284.0,0.32599153]
[1730464630995,0.000807,70291.0,70284.0,0.33311325]
[1730464631419,0.000807,70291.0,70284.0,0.32599153]
[1730464631916,0.000807,70291.0,70284.0,0.32799153]
[1730464632348,0.000807,70291.0,70284.0,0.46744678]
[1730464632787,0.001807,70285.0,70284.0,0.46944678]
[1730464633022,0.001807,70285.0,70284.0,0.33099153]
[1730464633239,0.001807,70285.0,70284.0,0.32799153]
[1730464633493,0.001807,70285.0,70284.0,0.33099153]
[1730464634169,0.001807,70285.0,70284.0,0.32899151]
[1730464634628,0.001807,70285.0,70284.0,0.32799151]
[1730464635066,0.001807,70285.0,70284.0,0.32899151]
[1730464635279,0.001807,70285.0,70284.0,0.33099151]
[1730464635490,0.001807,70285.0,70284.0,0.32799151]
[1730464635714,0.001807,70285.0,70284.0,0.32599151]
[1730464635946,0.001807,70285.0,70284.0,0.46744676]
[1730464636176,0.001807,70285.0,70284.0,0.46644676]
[1730464636605,0.001807,70285.0,70284.0,0.46944676]
[1730464636606,0.002807,70285.0,70284.0,0.46944676]
[1730464637273,0.002807,70285.0,70284.0,0.32899151]
[1730464637700,0.002807,70285.0,70284.0,0.32599151]
[1730464638126,0.002807,70285.0,70284.0,0.00876146]
[1730464638356,0.002807,70285.0,70284.0,0.15004046]
[1730464638582,0.002807,70285.0,70284.0,0.144279]
[1730464638789,0.002807,70285.0,70284.0,0.1524584]
[1730464639006,0.002807,70285.0,70284.0,0.1544584]
[1730464639233,0.002807,70285.0,70284.0,0.1574584]
[1730464639444,0.002807,70285.0,70284.0,0.15730372]
[1730464639690,0.002807,70285.0,70284.0,0.1615804]
[1730464639927,0.002807,70285.0,70284.0,0.47933565]
[1730464640371,0.002807,70285.0,70284.0,0.47733565]
[1730464640617,0.002807,70285.0,70284.0,0.57933565]
[1730464640840,0.000807,70291.0,70284.0,0.57933565]
[1730464640841,0.000807,70291.0,70290.0,0.142267]
[1730464641065,0.000807,70291.0,70290.0,0.29229557]
[1730464641286,0.000807,70291.0,70290.0,0.29859207]
[1730464641950,0.000807,70291.0,70290.0,0.16013384]
[1730464642186,0.000807,70291.0,70290.0,0.16213384]
[1730464642393,0.000807,70291.0,70290.0,0.16513384]
[1730464642626,0.000807,70291.0,70290.0,0.1535635]
[1730464642835,0.000807,70291.0,70290.0,0.16213438]
[1730464643487,0.000807,70291.0,70290.0,0.1485635]
[1730464643928,0.000807,70291.0,70290.0,0.1505635]
[1730464644130,0.000807,70291.0,70290.0,0.1535635]
[1730464644332,0.000807,70291.0,70290.0,0.1515635]
[1730464644538,0.000807,70291.0,70290.0,0.1505635]
[1730464644791,0.000807,70291.0,70290.0,0.1535635]
[1730464645002,0.000807,70291.0,70290.0,0.1505635]
[1730464645207,0.000807,70291.0,70290.0,0.1485635]
[1730464645463,0.000807,70291.0,70290.0,0.0112965]
[1730464645717,0.3888743,70291.0,70290.0,0.0112965]
[1730464645966,0.2466093,70291.0,70290.0,0.005]
[1730464646170,0.143072,70291.0,70290.0,0.002]
[1730464646586,0.143072,70291.0,70282.0,0.35656924]
[1730464646587,0.2466093,70291.0,70282.0,0.35656924]
[1730464646804,0.2466093,70291.0,70284.0,0.142279]
[1730464647058,0.2466093,70291.0,70290.0,0.35655424]
[1730464647263,0.2466093,70291.0,70277.0,0.284585]
[1730464647264,0.000807,70291.0,70285.0,0.00664946]
[1730464647532,0.000807,70291.0,70286.0,0.142274]
[1730464647791,0.166072,70291.0,70290.0,0.003]
[1730464648031,0.4118743,70291.0,70290.0,0.003]
[1730464648265,0.4118743,70291.0,70290.0,0.006]
[1730464648499,0.000807,70291.0,70290.0,0.142267]
[1730464648948,0.000807,70291.0,70290.0,0.14854728]
[1730464649174,0.000807,70291.0,70290.0,0.46010253]
[1730464651194,0.000807,70291.0,70290.0,0.56010253]
[1730464651447,0.000807,70291.0,70290.0,0.56510253]
[1730464651665,7.333e-05,70313.0,70290.0,0.56510253]
[1730464651666,0.00274493,70302.0,70301.0,0.3880473]
[1730464651899,7.333e-05,70313.0,70303.0,0.1]
[1730464652123,7.333e-05,70313.0,70312.0,0.142223]
[1730464652562,7.333e-05,70313.0,70312.0,0.148454]
[1730464652812,7.333e-05,70313.0,70312.0,0.1600212]
[1730464653955,7.333e-05,70313.0,70312.0,0.1540212]
[1730464654181,7.333e-05,70313.0,70312.0,0.16200427]
[1730464654618,7.333e-05,70313.0,70312.0,0.16000427]
[1730464654868,7.333e-05,70313.0,70312.0,0.16300427]
[1730464655086,7.333e-05,70313.0,70312.0,0.02278127]
[1730464655334,7.333e-05,70313.0,70312.0,0.16500427]
[1730464655546,7.333e-05,70313.0,70312.0,0.02278127]
[1730464656222,0.00089633,70313.0,70312.0,0.16500427]
[1730464656496,0.00089633,70313.0,70312.0,0.17314204]
[1730464656711,0.2458023,70328.0,70312.0,0.17314204]
[1730464656712,0.21428724,70326.0,70319.0,0.284417]
[1730464656925,0.1,70328.0,70320.0,0.2959812]
[1730464657159,0.1,70328.0,70324.0,0.142197]
[1730464657376,0.1,70328.0,70325.0,0.0115672]
[1730464657606,0.1,70328.0,70326.0,0.0115672]
[1730464657814,0.1,70328.0,70327.0,0.0115672]
[1730464658022,0.14219,70328.0,70327.0,0.01775521]
[1730464658263,0.14219,70328.0,70327.0,0.0115672]
[1730464658712,0.426561,70330.0,70327.0,0.01775202]
[1730464658940,0.426561,70330.0,70328.0,0.0115672]
[1730464658941,0.142189,70329.0,70328.0,0.0115672]
[1730464659214,0.142189,70329.0,70328.0,0.01775042]
[1730464659480,0.142189,70329.0,70328.0,0.00618308]
[1730464659481,0.30364425,70329.0,70328.0,0.00618308]
[1730464659692,0.30364425,70329.0,70328.0,0.01063217]
[1730464659896,0.30364425,70329.0,70328.0,0.00444909]
[1730464660347,0.39092278,70329.0,70328.0,0.00444909]
[1730464661169,0.34873378,70329.0,70316.0,0.21428724]
[1730464661398,0.165213,70317.0,70316.0,0.21428724]
[1730464661614,0.30366825,70317.0,70316.0,0.22585678]
[1730464662035,0.13845525,70317.0,70316.0,0.01156954]
[1730464662251,0.28066825,70317.0,70316.0,0.01156954]
[1730464662452,0.28066825,70317.0,70316.0,0.01737542]
[1730464662690,0.28066825,70317.0,70316.0,0.01156954]
[1730464662921,0.142213,70317.0,70316.0,0.01156954]
[1730464663148,0.28442,70319.0,70316.0,0.01937542]
[1730464663365,0.1,70327.0,70317.0,0.01156954]
[1730464663574,0.123,70325.0,70318.0,0.01156954]
[1730464663802,0.123,70323.0,70319.0,0.01156954]
[1730464664042,0.142207,70320.0,70319.0,0.00580067]
[1730464664243,0.142207,70320.0,70319.0,0.01156886]
[1730464664451,0.23945433,70320.0,70319.0,0.01156886]
[1730464664666,0.142207,70320.0,70319.0,0.01156886]
[1730464665282,0.1,70332.0,70319.0,0.01156886]
[1730464665483,0.42282825,70330.0,70320.0,0.01156886]
[1730464665696,0.42282825,70330.0,70321.0,0.15377186]
[1730464665901,0.42282825,70330.0,70322.0,0.01156886]
[1730464666105,0.13845525,70330.0,70323.0,0.01156886]
[1730464666335,0.142194,70327.0,70324.0,0.01156886]
[1730464666552,0.000806,70356.0,70327.0,0.284385]
[1730464666763,0.284309,70346.0,70330.0,0.3879883]
[1730464667024,0.21428724,70345.0,70330.0,0.3879883]
[1730464667263,0.142161,70343.0,70330.0,0.16187786]
[1730464667479,0.142161,70343.0,70330.0,0.16765727]
[1730464667717,0.284309,70346.0,70330.0,0.16765727]
[1730464667962,0.142159,70344.0,70330.0,0.16765727]
[1730464668181,0.142166,70341.0,70330.0,0.18065337]
[1730464668397,0.284323,70343.0,70330.0,0.18365337]
[1730464668599,0.142162,70343.0,70330.0,0.18365337]
[1730464668848,0.142162,70342.0,70330.0,0.18365337]
[1730464669069,0.64984155,70331.0,70330.0,0.02034512]
[1730464669286,0.64984155,70331.0,70330.0,0.02234512]
[1730464669506,0.64984155,70331.0,70330.0,0.00944835]
[1730464669744,0.64984155,70331.0,70330.0,0.00744835]
[1730464669956,0.64984155,70331.0,70330.0,0.01456712]
[1730464670173,0.7716981,70331.0,70330.0,0.01356712]
[1730464670354,0.7716981,70331.0,70330.0,0.00644835]
[1730464670593,0.7716981,70331.0,70330.0,0.00944835]
[1730464670801,0.7716981,70331.0,70330.0,0.00644835]
[1730464671025,0.7716981,70331.0,70330.0,0.002]
[1730464671244,0.7716981,70331.0,70330.0,0.003]
[1730464671456,0.7716981,70331.0,70330.0,0.002]
[1730464671705,0.142215,70316.0,70315.0,0.00813148]
[1730464671909,0.52647255,70316.0,70315.0,0.01970091]
[1730464672332,0.54947255,70316.0,70315.0,0.01970091]
[1730464672553,0.54947255,70316.0,70315.0,0.01258126]
[1730464672770,0.64947255,70316.0,70315.0,0.01258126]
[1730464673209,0.65747255,70316.0,70315.0,0.01258126]
[1730464673411,0.64947255,70316.0,70315.0,0.00813148]
[1730464674315,0.78794985,70316.0,70315.0,0.00813148]
[1730464674756,0.78794985,70316.0,70315.0,0.00913148]
[1730464674988,0.64947255,70316.0,70315.0,0.00813148]
[1730464675191,0.89527485,70316.0,70315.0,0.00813148]
[1730464675627,0.89527485,70316.0,70315.0,0.00913148]
[1730464676073,0.75677627,70311.0,70310.0,0.001646]
[1730464676289,0.89523152,70311.0,70310.0,0.001646]
[1730464676968,0.92756533,70311.0,70310.0,0.001646]
[1730464677185,0.13845525,70311.0,70310.0,0.001646]
[1730464677403,0.2458023,70326.0,70310.0,0.00609641]
[1730464677614,0.2458023,70326.0,70311.0,0.00445041]
[1730464677869,0.2458023,70326.0,70317.0,0.142211]
[1730464678077,0.001,70316.0,70315.0,0.143217]
[1730464678316,0.2458023,70321.0,70315.0,0.01846049]
[1730464678526,0.284383,70328.0,70318.0,0.00592552]
[1730464678737,0.2458023,70320.0,70319.0,0.0044494]
[1730464678974,0.28028724,70320.0,70319.0,0.01746034]
[1730464679227,0.2458023,70320.0,70319.0,0.01746034]
[1730464679461,0.2458023,70325.0,70319.0,0.0044494]
[1730464679676,0.2458023,70320.0,70319.0,0.00587254]
[1730464679885,0.2458023,70320.0,70319.0,0.00444945]
[1730464680372,0.3880093,70320.0,70319.0,0.01031896]
[1730464680583,0.60755171,70320.0,70319.0,0.00444945]
[1730464680798,0.73055171,70320.0,70319.0,0.00444945]
[1730464681012,0.64946455,70320.0,70319.0,0.00444945]
[1730464681263,0.64946455,70320.0,70319.0,0.00944945]
[1730464681515,0.64946455,70320.0,70319.0,0.00645002]
[1730464681773,0.242215,70316.0,70315.0,0.001644]
[1730464682010,0.38067025,70316.0,70315.0,0.00609404]
[1730464682725,0.2458023,70325.0,70315.0,0.00609404]
[1730464682956,0.2458023,70325.0,70319.0,0.003]
[1730464682957,0.13845525,70324.0,70319.0,0.003]
[1730464683210,0.13845525,70324.0,70320.0,0.00445004]
[1730464683460,0.001222,70331.0,70330.0,0.142186]
[1730464683680,0.2470243,70331.0,70330.0,0.00445004]
[1730464683859,0.2470243,70331.0,70330.0,0.01030102]
[1730464684104,0.001222,70331.0,70330.0,0.14663604]
[1730464684328,0.001222,70331.0,70330.0,0.1524873]
[1730464684558,0.2470243,70331.0,70330.0,0.1524873]
[1730464684778,0.2470243,70331.0,70330.0,0.0133013]
[1730464684990,0.2470243,70331.0,70330.0,0.15303726]
[1730464685215,0.2470243,70331.0,70330.0,0.15748587]
[1730464685432,0.2470243,70331.0,70330.0,0.15548587]
[1730464685725,0.2470243,70331.0,70330.0,0.15303726]
[1730464685938,0.001222,70331.0,70330.0,0.15003726]
[1730464686658,0.001222,70331.0,70330.0,0.15303726]
[1730464686879,0.001222,70331.0,70330.0,0.00785126]
[1730464687108,0.001222,70331.0,70330.0,0.00885126]
[1730464687366,0.4035483,70331.0,70330.0,0.01085126]
[1730464687584,0.69953592,70331.0,70330.0,0.005]
[1730464687820,0.66500355,70331.0,70330.0,0.005]
[1730464688049,0.66500355,70331.0,70330.0,0.002]
[1730464688272,0.284385,70328.0,70323.0,0.21428724]
[1730464688508,0.142198,70324.0,70323.0,0.21428724]
[1730464688937,0.142198,70324.0,70321.0,0.0909]
[1730464689173,0.142196,70326.0,70321.0,0.0909]
[1730464689395,0.001222,70331.0,70321.0,0.0909]
[1730464689678,0.001222,70331.0,70330.0,0.142186]
[1730464691219,0.001222,70331.0,70330.0,0.14849688]
[1730464691453,0.001222,70331.0,70330.0,0.15349688]
[1730464691892,0.001222,70331.0,70330.0,0.15149688]
[1730464692373,0.001222,70331.0,70330.0,0.01131088]
[1730464692587,0.001222,70331.0,70330.0,0.00831088]
[1730464692799,0.0439971,70331.0,70330.0,0.00831088]
[1730464693017,0.1861811,70331.0,70330.0,0.01131088]
[1730464693480,0.001222,70331.0,70330.0,0.01131088]
[1730464693681,0.001222,70331.0,70330.0,0.145186]
[1730464693915,0.001222,70331.0,70330.0,0.144186]
[1730464694121,0.001222,70331.0,70330.0,0.15460394]
[1730464694329,0.001222,70331.0,70330.0,0.15260394]
[1730464694555,0.001222,70331.0,70330.0,0.14960394]
[1730464694799,0.001222,70331.0,70330.0,0.15160394]
[1730464695890,0.001222,70331.0,70330.0,0.14960394]
[1730464696117,0.001222,70331.0,70330.0,0.15260394]
[1730464696828,0.001222,70331.0,70330.0,0.01041794]
[1730464697063,0.30486125,70331.0,70330.0,0.01041794]
[1730464697314,0.30486125,70331.0,70330.0,0.01315274]
[1730464697548,0.143406,70331.0,70330.0,0.002]
[1730464697789,0.143406,70331.0,70330.0,0.003]
[1730464698025,0.001222,70331.0,70330.0,0.005]
[1730464698238,0.143406,70331.0,70330.0,0.005]
[1730464698498,0.143406,70331.0,70330.0,0.003]
[1730464698677,0.143406,70331.0,70330.0,0.004]
[1730464698909,0.143406,70331.0,70330.0,0.01236345]
[1730464699136,0.143406,70331.0,70330.0,0.004]
[1730464699582,0.32463785,70331.0,70330.0,0.00936345]
[1730464699820,0.34763785,70331.0,70330.0,0.00936345]
[1730464700051,0.34763785,70331.0,70330.0,0.001]
[1730464700236,0.34763785,70331.0,70321.0,0.0909]
[1730464700237,0.142203,70322.0,70321.0,0.0909]
[1730464700724,0.142203,70322.0,70321.0,0.0992985]
[1730464702078,0.142203,70322.0,70321.0,0.1042985]
[1730464702301,0.1422,70324.0,70321.0,0.1042985]
[1730464702518,0.2458023,70330.0,70321.0,0.1042985]
[1730464702728,0.142203,70322.0,70321.0,0.1042985]
[1730464702948,0.142203,70322.0,70321.0,0.0959]
[1730464703377,0.142203,70322.0,70321.0,0.0909]
[1730464703624,0.284389,70326.0,70321.0,0.0939]
[1730464703862,0.142201,70323.0,70321.0,0.0929]
[1730464704080,0.142198,70325.0,70321.0,0.0929]
[1730464704327,0.001222,70331.0,70324.0,0.21428724]
[1730464704564,0.142189,70329.0,70324.0,0.142197]
[1730464704784,0.001222,70331.0,70328.0,0.14219]
[1730464705010,0.143407,70331.0,70323.0,0.284401]
[1730464705239,0.143407,70331.0,70327.0,0.142191]
[1730464705240,0.000823,70330.0,70327.0,0.142191]
[1730464705447,0.000823,70330.0,70326.0,0.142193]
[1730464705668,0.14301,70330.0,70325.0,0.142195]
[1730464705885,0.20015148,70330.0,70326.0,0.142194]
[1730464706094,0.14301,70330.0,70326.0,0.142194]
[1730464706506,0.14301,70330.0,70327.0,0.00839489]
[1730464707334,0.000823,70330.0,70327.0,0.00839489]
[1730464707537,0.14301,70330.0,70327.0,0.00839489]
[1730464707766,0.14301,70330.0,70325.0,0.142196]
[1730464708199,0.14219,70329.0,70325.0,0.142196]
[1730464708410,0.14219,70329.0,70327.0,0.001]
[1730464708625,0.14219,70328.0,70327.0,0.001]
[1730464709669,0.142197,70325.0,70321.0,0.233104]
[1730464709882,0.142189,70329.0,70321.0,0.0909]
[1730464710089,0.142191,70328.0,70325.0,0.003]
[1730464710324,0.142191,70328.0,70324.0,0.142198]
[1730464710565,0.142191,70328.0,70327.0,0.002]
[1730464710777,0.14219,70328.0,70327.0,0.002]
[1730464711033,0.000823,70330.0,70329.0,0.142188]
[1730464711258,0.000823,70330.0,70329.0,0.22873665]
[1730464712802,0.000823,70330.0,70329.0,0.08654865]
[1730464713018,0.000823,70330.0,70329.0,0.22873665]
[1730464713445,0.000823,70330.0,70329.0,0.23073665]
[1730464713681,0.000823,70330.0,70329.0,0.23373665]
[1730464713914,0.000823,70330.0,70329.0,0.22873665]
[1730464714115,0.000823,70330.0,70329.0,0.227288]
[1730464714363,0.000823,70330.0,70329.0,0.23173652]
[1730464714572,0.000823,70330.0,70329.0,0.23073652]
[1730464714773,0.000823,70330.0,70329.0,0.23373652]
[1730464715215,0.000823,70330.0,70329.0,0.09154852]
[1730464715438,0.000823,70330.0,70329.0,0.23373652]
[1730464715874,0.000823,70330.0,70329.0,0.09154852]
[1730464716106,0.143009,70330.0,70329.0,0.08854852]
[1730464716370,0.000823,70330.0,70329.0,0.09154852]
[1730464716588,0.000823,70330.0,70329.0,0.08654852]
[1730464716812,0.000823,70330.0,70329.0,0.08854852]
[1730464717052,0.000823,70330.0,70329.0,0.00944852]
[1730464717053,0.143009,70330.0,70329.0,0.00944852]
[1730464717253,0.44469523,70330.0,70329.0,0.003]
[1730464717702,0.44469523,70330.0,70329.0,0.005]
[1730464717926,0.44469523,70330.0,70329.0,0.002]
[1730464718108,0.142199,70324.0,70321.0,0.1697]
[1730464718315,0.142199,70324.0,70322.0,0.00444905]
[1730464718536,0.142199,70324.0,70323.0,0.00444905]
[1730464719680,0.284377,70329.0,70325.0,0.142196]
[1730464719681,0.14219,70329.0,70325.0,0.142196]
[1730464719893,0.000823,70330.0,70325.0,0.142196]
[1730464719894,0.000823,70330.0,70329.0,0.142188]
[1730464720140,0.000823,70330.0,70329.0,0.14947993]
[1730464720365,0.000823,70330.0,70329.0,0.14663667]
[1730464720609,0.000823,70330.0,70329.0,0.32503667]
[1730464720845,0.000823,70330.0,70329.0,0.34619288]
[1730464721095,0.21428724,70343.0,70339.0,0.142168]
[1730464721331,0.21428724,70343.0,70339.0,0.14661667]
[1730464721629,0.142151,70348.0,70339.0,0.142168]
[1730464721868,0.144385,70349.0,70339.0,0.15474846]
[1730464722094,0.002236,70349.0,70339.0,0.14661574]
[1730464722727,0.002236,70349.0,70339.0,0.15758895]
[1730464723178,0.002236,70349.0,70339.0,0.15958895]
[1730464723388,0.002236,70349.0,70339.0,0.33228895]
[1730464723624,0.002236,70349.0,70339.0,0.32573307]
[1730464723864,0.002236,70349.0,70348.0,0.5596414]
[1730464724136,0.002236,70349.0,70348.0,0.79809665]
[1730464724554,0.000806,70356.0,70355.0,0.6572274]
[1730464724754,0.000806,70356.0,70355.0,0.79568265]
[1730464725224,0.000806,70356.0,70355.0,0.80824817]
[1730464725494,0.000806,70356.0,70355.0,0.79568265]
[1730464726132,0.000806,70356.0,70345.0,0.361512]
[1730464726342,0.13845525,70355.0,70346.0,0.21428724]
[1730464726557,0.000806,70356.0,70347.0,0.00284305]
[1730464726799,0.000806,70356.0,70355.0,0.145136]
[1730464727023,0.000806,70356.0,70355.0,0.15470219]
[1730464727241,0.000806,70356.0,70355.0,0.14658206]
[1730464727690,0.000806,70356.0,70355.0,0.142136]